fUSD/lending_fUSD_20250304
["ID","MTS","AMOUNT","RATE_DAILY","PERIOD"]
[355399507,1741105791156,-1280.616214,0.00012874,2]
[355399508,1741105791184,-453.274167,0.00012874,2]
[355399509,1741105791208,-1280.616214,0.00012874,2]
[355399510,1741105791233,-169.725641,0.00012874,2]
[355399511,1741105791257,-453.274167,0.00012874,2]
[355399512,1741105791280,-169.725641,0.00012874,2]
[355399513,1741105791304,-443.251764,0.00012874,2]
[355399514,1741105791327,-206.956566,0.00012874,2]
[355399515,1741105791350,-443.251764,0.00012874,2]
[355399516,1741105791374,-206.956566,0.00012874,2]
[355399517,1741105791397,-225.414588,0.00012874,2]
[355399518,1741105791419,-225.414588,0.00012874,2]
[355399519,1741105791442,-151.0,0.00012882,2]
[355399520,1741105791465,-4124.86223547,0.00012882,2]
[355399521,1741105791619,-4375.13776453,0.00012882,2]
[355399522,1741105791646,-1000.0,0.0001289,2]
[355399523,1741105791673,-4624.86223547,0.00012891,2]
[355399524,1741105791703,-3875.13776453,0.00012891,2]
[355399525,1741105791729,-150.0,0.00012894,2]
[355399526,1741105791752,-1433.0,0.000129,2]
[355399527,1741105791776,-4541.86223547,0.000129,2]
[355399528,1741105791808,-10000.0,0.000129,2]
[355399529,1741105791847,-10000.0,0.000129,2]
[355399530,1741105792119,-10000.0,0.000129,2]
[355399531,1741105793207,-10000.0,0.000129,2]
[355399532,1741105793255,-10000.0,0.000129,2]
[355399533,1741105793312,-10000.0,0.000129,2]
[355399534,1741105794381,-10000.0,0.000129,2]
[355399535,1741105795388,-10000.0,0.000129,2]
[355399536,1741105795705,-395.6179806,0.00012616,2]
[355399537,1741105795734,-9604.3820194,0.000129,2]
[355399538,1741105797183,-10000.0,0.000129,2]
[355399539,1741105797973,-10000.0,0.000129,2]
[355399540,1741105798163,-10000.0,0.000129,2]
[355399758,1741105822383,-1336.7781,0.00012487,2]
[355399759,1741105822411,-1571.1356,0.00012487,2]
[355399760,1741105822436,-150.0,0.00012693,2]
[355399761,1741105822462,-154.0,0.000127,3]
[355399762,1741105822486,-311.23165308,0.000128,2]
[355399763,1741105822511,-150.0,0.00012825,2]
[355399764,1741105822535,-2897.85464692,0.00012885,2]
[355399790,1741105832501,-150.0,0.00012346,2]
[355399791,1741105832513,-360.76481256,0.00012873,2]
[355399792,1741105832561,-139.23518744,0.00012873,2]
[355399793,1741105832573,-368.60013992,0.00012885,2]
[355399794,1741105832587,-11183.47184529,0.00012885,2]
[355399795,1741105832597,-300.0,0.00012899,2]
[355399796,1741105832609,-150.0,0.00012899,2]
[355399797,1741105832620,-36955.70251962,0.000129,2]
[355399798,1741105832637,-151.0,0.000129,2]
[355399799,1741105832650,-151.0,0.000129,2]
[355399800,1741105832661,-151.0,0.000129,2]
[355399801,1741105832672,-151.0,0.000129,2]
[355399802,1741105832683,-151.0,0.000129,2]
[355399803,1741105832694,-185.010435,0.000129,2]
[355399804,1741105832706,-151.0,0.000129,2]
[355399805,1741105832717,-151.0,0.000129,2]
[355399806,1741105832729,-151.0,0.000129,2]
[355399807,1741105832740,-151.0,0.000129,2]
[355399808,1741105832751,-151.0,0.000129,2]
[355399809,1741105832762,-151.0,0.000129,2]
[355399810,1741105832773,-151.0,0.000129,2]
[355399811,1741105832784,-158.606008,0.000129,2]
[355399812,1741105832795,-158.606008,0.000129,2]
[355399813,1741105832806,-158.606008,0.000129,2]
[355399814,1741105832817,-158.606008,0.000129,2]
[355399815,1741105832830,-151.0,0.000129,2]
[355399816,1741105832840,-151.0,0.000129,2]
[355399817,1741105832851,-151.0,0.000129,2]
[355399818,1741105832861,-151.0,0.000129,2]
[355399819,1741105832872,-151.0,0.000129,2]
[355399820,1741105832889,-221.074135,0.000129,2]
[355399821,1741105832900,-151.0,0.000129,2]
[355399822,1741105832911,-151.0,0.000129,2]
[355399823,1741105832921,-151.0,0.000129,2]
[355399824,1741105832932,-151.0,0.000129,2]
[355399825,1741105832941,-254.406149,0.000129,2]
[355399826,1741105832952,-151.0,0.000129,2]
[355399827,1741105832962,-151.0,0.000129,2]
[355399828,1741105832973,-151.0,0.000129,2]
[355399829,1741105832984,-151.0,0.000129,2]
[355399830,1741105832995,-151.0,0.000129,2]
[355399831,1741105833006,-151.0,0.000129,2]
[355399832,1741105833017,-305.83434,0.000129,2]
[355399833,1741105833029,-305.83434,0.000129,2]
[355399834,1741105833040,-151.0,0.000129,2]
[355399835,1741105833050,-151.0,0.000129,2]
[355399836,1741105833060,-180.115053,0.000129,2]
[355399837,1741105833073,-151.0,0.000129,2]
[355399838,1741105833086,-151.0,0.000129,2]
[355399839,1741105833097,-151.0,0.000129,2]
[355399840,1741105833108,-151.0,0.000129,2]
[355399841,1741105833120,-151.0,0.000129,2]
[355399842,1741105833136,-151.0,0.000129,2]
[355399843,1741105833149,-151.0,0.000129,2]
[355399844,1741105833163,-1073.040503,0.000129,2]
[355399845,1741105833175,-1073.040503,0.000129,2]
[355399846,1741105833186,-1280.616214,0.000129,2]
[355399847,1741105833197,-1280.616214,0.000129,2]
[355399849,1741105833209,-453.274167,0.000129,2]
[355399851,1741105833220,-453.274167,0.000129,2]
[355399853,1741105833232,-1280.616214,0.000129,2]
[355399854,1741105833244,-1280.616214,0.000129,2]
[355399855,1741105833255,-169.725641,0.000129,2]
[355399856,1741105833267,-169.725641,0.000129,2]
[355399859,1741105833278,-453.274167,0.000129,2]
[355399862,1741105833289,-453.274167,0.000129,2]
[355399865,1741105833301,-169.725641,0.000129,2]
[355399868,1741105833311,-169.725641,0.000129,2]
[355399870,1741105833323,-443.251764,0.000129,2]
[355399872,1741105833334,-443.251764,0.000129,2]
[355399873,1741105833345,-443.251764,0.000129,2]
[355399874,1741105833355,-443.251764,0.000129,2]
[355399875,1741105833365,-206.956566,0.000129,2]
[355399876,1741105833375,-206.956566,0.000129,2]
[355399877,1741105833392,-225.414588,0.000129,2]
[355399878,1741105833403,-225.414588,0.000129,2]
[355399879,1741105833415,-225.414588,0.000129,2]
[355399880,1741105833425,-225.414588,0.000129,2]
[355399881,1741105833436,-151.0,0.000129,2]
[355399882,1741105833447,-151.0,0.000129,2]
[355399883,1741105833457,-151.0,0.000129,2]
[355399884,1741105833468,-151.0,0.000129,2]
[355399885,1741105833479,-151.0,0.000129,2]
[355399886,1741105833490,-151.0,0.000129,2]
[355399887,1741105833501,-351.049467,0.000129,2]
[355399888,1741105833512,-351.049467,0.000129,2]
[355399889,1741105833522,-151.0,0.000129,2]
[355399890,1741105833532,-207.161732,0.000129,2]
[355399891,1741105833543,-8500.0,0.000129,2]
[355399892,1741105833554,-151.0,0.000129,2]
[355399893,1741105833564,-151.0,0.000129,2]
[355399894,1741105833575,-151.0,0.000129,2]
[355399895,1741105833586,-151.0,0.000129,2]
[355399896,1741105833598,-151.0,0.000129,2]
[355399897,1741105833610,-194.832288,0.000129,2]
[355399898,1741105833622,-283.736239,0.000129,2]
[355399900,1741105833637,-283.736239,0.000129,2]
[355399902,1741105833647,-151.0,0.000129,2]
[355399904,1741105833657,-151.0,0.000129,2]
[355399906,1741105833669,-255.338273,0.000129,2]
[355399908,1741105833679,-151.0,0.000129,2]
[355399910,1741105833690,-151.0,0.000129,2]
[355399911,1741105833701,-151.0,0.000129,2]
[355399913,1741105833713,-151.0,0.000129,2]
[355399915,1741105833725,-172.077781,0.000129,2]
[355399917,1741105833736,-151.0,0.000129,2]
[355399919,1741105833748,-172.077781,0.000129,2]
[355399921,1741105833760,-154.237367,0.000129,2]
[355399924,1741105833772,-448.397424,0.000129,2]
[355399925,1741105833783,-448.397424,0.000129,2]
[355399926,1741105833793,-448.397424,0.000129,2]
[355399928,1741105833805,-448.397424,0.000129,2]
[355399930,1741105833815,-300.052513,0.000129,2]
[355399932,1741105833826,-151.0,0.000129,2]
[355399934,1741105833837,-151.0,0.000129,2]
[355399936,1741105833847,-151.0,0.000129,2]
[355399938,1741105833858,-200.598071,0.000129,2]
[355399940,1741105833869,-200.598071,0.000129,2]
[355399941,1741105833880,-200.598071,0.000129,2]
[355399943,1741105833892,-200.598071,0.000129,2]
[355399945,1741105833903,-151.0,0.000129,2]
[355399947,1741105833913,-151.0,0.000129,2]
[355399949,1741105833923,-151.0,0.000129,2]
[355399951,1741105833933,-151.0,0.000129,2]
[355399953,1741105833943,-161.070881,0.000129,2]
[355399955,1741105833954,-161.070881,0.000129,2]
[355399957,1741105833965,-161.070881,0.000129,2]
[355399959,1741105833975,-161.070881,0.000129,2]
[355399960,1741105833985,-152.727027,0.000129,2]
[355399961,1741105833996,-2040.925884,0.000129,2]
[355399962,1741105834006,-2040.925884,0.000129,2]
[355399964,1741105834017,-151.0,0.000129,2]
[355399965,1741105834028,-151.0,0.000129,2]
[355399967,1741105834039,-163.645879,0.000129,2]
[355399968,1741105834049,-163.645879,0.000129,2]
[355399969,1741105834060,-486.733206,0.000129,2]
[355399971,1741105834075,-151.0,0.000129,2]
[355399972,1741105834086,-151.0,0.000129,2]
[355399973,1741105834098,-486.733206,0.000129,2]
[355399975,1741105834109,-151.0,0.000129,2]
[355399976,1741105834121,-401.448526,0.000129,2]
[355399978,1741105834137,-401.448526,0.000129,2]
[355399979,1741105834149,-920.0,0.000129,4]
[355399980,1741105834160,-401.448526,0.000129,2]
[355399982,1741105834173,-401.448526,0.000129,2]
[355399983,1741105834184,-600.63435641,0.000129,2]
[355399984,1741105834196,-167.78976199,0.000129,2]
[355399986,1741105834207,-151.0,0.000129,2]
[355399987,1741105834219,-151.0,0.000129,2]
[355399989,1741105834230,-151.0,0.000129,2]
[355399990,1741105834241,-246.463382,0.000129,2]
[355399991,1741105834252,-151.0,0.000129,2]
[355399993,1741105834263,-151.0,0.000129,2]
[355399994,1741105834273,-151.0,0.000129,2]
[355399995,1741105834284,-151.0,0.000129,2]
[355399997,1741105834295,-368.0,0.000129,2]
[355399998,1741105834306,-9025.891051,0.000129,2]
[355399999,1741105834316,-9025.891051,0.000129,2]
[355400000,1741105834327,-151.0,0.000129,2]
[355400001,1741105834338,-151.0,0.000129,2]
[355400002,1741105834349,-398.84435531,0.000129,2]
[355400003,1741105834359,-9025.891051,0.000129,2]
[355400004,1741105834370,-9025.891051,0.000129,2]
[355400005,1741105834385,-151.0,0.000129,2]
[355400006,1741105834396,-151.0,0.000129,2]
[355400007,1741105834408,-2010.68,0.000129,2]
[355400008,1741105834421,-150.0,0.00012917,2]
[355400009,1741105834432,-150.0,0.00012923,2]
[355400010,1741105834443,-622.75,0.00012931,2]
[355400011,1741105834455,-150.0,0.00012933,2]
[355400012,1741105834467,-150.0,0.00012936,2]
[355400013,1741105834479,-2859.1694759,0.00012943,2]
[355400014,1741105834490,-689.24,0.00012945,2]
[355400015,1741105834501,-344.62,0.00012945,2]
[355400016,1741105834512,-344.62,0.00012945,2]
[355400017,1741105834523,-344.62,0.00012945,2]
[355400018,1741105834533,-344.62,0.00012945,2]
[355400019,1741105834544,-398.0,0.00012945,2]
[355400020,1741105834554,-688.94,0.00012947,2]
[355400021,1741105834564,-1291.0,0.00012948,2]
[355400022,1741105834575,-2841.0,0.00012948,3]
[355400023,1741105834585,-150.0,0.0001295,2]
[355400024,1741105834596,-521.24941505,0.00012953,2]
[355400025,1741105834607,-150.0,0.00012959,2]
[355400026,1741105834618,-150.0,0.00012962,2]
[355400027,1741105834630,-1100.0,0.0001297,2]
[355400028,1741105834643,-17377.94191554,0.0001297,2]
[355400029,1741105834654,-150.0,0.00012981,2]
[355400030,1741105834665,-150.0,0.00012982,2]
[355400031,1741105834676,-150.0,0.0001299,2]
[355400032,1741105834687,-198.16709925,0.0001299,2]
[355400033,1741105834698,-2388.0100887,0.00012991,2]
[355400034,1741105834709,-7338.910103,0.00012991,2]
[355400035,1741105834720,-281.983105,0.00012998,2]
[355400036,1741105834731,-153.57041,0.00012998,2]
[355400037,1741105834742,-158.606008,0.00012998,2]
[355400038,1741105834753,-158.606008,0.00012998,2]
[355400039,1741105834764,-151.0,0.00012998,2]
[355400040,1741105834922,-151.0,0.00012998,2]
[355400041,1741105834957,-151.0,0.00012998,2]
[355400042,1741105834968,-151.0,0.00012998,2]
[355400043,1741105834978,-155.172523,0.00012998,2]
[355400044,1741105834989,-151.0,0.00012998,2]
[355400045,1741105834999,-151.0,0.00012998,2]
[355400046,1741105835010,-305.83434,0.00012998,2]
[355400047,1741105835020,-151.0,0.00012998,2]
[355400048,1741105835031,-151.0,0.00012998,2]
[355400049,1741105835041,-151.0,0.00012998,2]
[355400050,1741105835052,-1073.040503,0.00012998,2]
[355400051,1741105835062,-453.274167,0.00012998,2]
[355400052,1741105835074,-453.274167,0.00012998,2]
[355400053,1741105835084,-443.251764,0.00012998,2]
[355400054,1741105835094,-443.251764,0.00012998,2]
[355400055,1741105835106,-225.414588,0.00012998,2]
[355400056,1741105835116,-225.414588,0.00012998,2]
[355400057,1741105835126,-1000.0,0.00012999,2]
[355400058,1741105835144,-1000.0,0.00012999,2]
[355400059,1741105835154,-643473.95012192,0.00013,2]
[355400060,1741105835163,-44259.48522521,0.00013,2]
[355400061,1741105835185,-293.38966816,0.00013,2]
[355400062,1741105835198,-601.48043916,0.00013,2]
[355400063,1741105835223,-23617.17823487,0.00013,2]
[355400064,1741105835235,-4922.23199825,0.00013,2]
[355400065,1741105835255,-874.06888894,0.00013,2]
[355400066,1741105835266,-633.91710109,0.00013,2]
[355400067,1741105835286,-1075.9549519,0.00013,2]
[355400069,1741105838280,-1004.57485244,0.00012346,2]
[355400070,1741105838294,-108.42514756,0.00012346,2]
[355400071,1741105838305,-188.23145956,0.00012899,2]
[355400073,1741105838316,-1044.18196954,0.000129,2]
[355400076,1741105838344,-7649.11544129,0.000129,2]
[355400078,1741105838357,-2381.73448255,0.000129,2]
[355400079,1741105838522,-437.74276958,0.000129,2]
[355400080,1741105838533,-492.04005655,0.000129,2]
[355400299,1741105844145,-1920.0,0.000129,2]
[355400300,1741105844200,-44856.96118544,0.000129,2]
[355400301,1741105844210,-5575.6515572,0.000129,2]
[355400302,1741105844221,-151.0,0.000129,2]
[355400303,1741105844231,-151.0,0.000129,2]
[355400304,1741105844242,-106762.66840451,0.00013,2]
[355400305,1741105844254,-2228.47781307,0.00013,2]
[355400306,1741105844266,-315.22903255,0.00013,2]
[355400307,1741105844279,-420.4049984,0.00013,2]
[355400308,1741105844923,-2602.6001,0.000129,2]
[355400309,1741105844936,-6136.4095455,0.000129,2]
[355400310,1741105844967,-1778.28042013,0.000129,2]
[355400317,1741105846106,-264.9996,0.000129,2]
[355400318,1741105846277,-2745.4001,0.000129,2]
[355400319,1741105846290,-87314.60539654,0.000129,2]
[355400320,1741105846339,-5766.17478965,0.000129,2]
[355400321,1741105846352,-10632.41659197,0.000129,2]
[355400322,1741105846479,-422.54166336,0.000129,2]
[355400323,1741105846999,-50509.8787102,0.000129,2]
[355400324,1741105847011,-2914.2999998,0.000129,2]
[355400325,1741105847028,-307.72270413,0.000129,2]
[355400326,1741105847041,-974.9999998,0.000129,2]
[355400327,1741105847111,-15035.00369418,0.000129,2]
[355400328,1741105847125,-38310.5861188,0.000129,2]
[355401891,1741106357453,957.75,9.363e-05,2]
[355401900,1741106784865,168.7,8.974e-05,2]
[355401909,1741106849951,-150.0,0.00011887,7]
[355401953,1741107031638,-203.65242305,0.00011156,2]
[355401954,1741107031649,-1327.79,0.00011186,2]
[355401955,1741107031660,-1587.43257695,0.0001125,2]
[355401956,1741107031692,-412.56742305,0.0001125,2]
[355401957,1741107031702,-150.0,0.00011256,2]
[355401958,1741107031711,-361.38257695,0.00011263,2]
[355401959,1741107031811,-1506.74742305,0.00011263,2]
[355401960,1741107031824,-300.0,0.00011276,2]
[355401961,1741107031835,-1433.8,0.00011277,2]
[355401962,1741107031844,-48.05524759,0.00011277,2]
[355401963,1741107031856,-259.13983436,0.00011277,2]
[355401964,1741107031868,-452.902,0.00011277,2]
[355401965,1741107031879,-280.392,0.00011277,2]
[355401966,1741107032012,-291.50000001,0.00011277,2]
[355401967,1741107032024,-668.01091804,0.00011277,2]
[355401968,1741107032033,-999.24055025,0.00011278,2]
[355401969,1741107032045,-0.75944975,0.00011278,2]
[355401970,1741107032055,-150.0,0.00011291,2]
[355401971,1741107032065,-3332.64246307,0.00011384,2]
[355402029,1741107037500,-582.02220257,0.00011384,2]
[355402031,1741107037516,-626.46520288,0.00011384,2]
[355402035,1741107037571,-1627.22029555,0.00011384,2]
[355402036,1741107037612,-17731.64983593,0.00011384,2]
[355402037,1741107037621,-404.03714705,0.000115,2]
[355402038,1741107037667,-253.73136155,0.000115,2]
[355402039,1741107037678,-345.2004914,0.000115,2]
[355402040,1741107037688,-66.73132861,0.00011507,2]
[355402238,1741107039678,-1977.18260201,0.00011507,2]
[355402240,1741107039690,-707.08606938,0.00011507,2]
[355402242,1741107039701,-150.0,0.00011589,2]
[355402244,1741107039711,-165.08,0.00011616,2]
[355402246,1741107039721,-957.75,0.00011627,2]
[355402249,1741107039731,-150.0,0.00011793,2]
[355402250,1741107039741,-440.34,0.00011813,2]
[355402253,1741107039751,-158.24,0.00011845,2]
[355402257,1741107039762,-440.34,0.00011869,2]
[355402260,1741107039773,-440.34,0.00011925,2]
[355402263,1741107039783,-203.65242305,0.00011937,2]
[355402266,1741107039794,-440.34,0.00011981,2]
[355402269,1741107039804,-493.52708199,0.00011986,2]
[355402272,1741107039814,-150.0,0.00011986,2]
[355402275,1741107039824,-21066.47,0.00011987,2]
[355402278,1741107039836,-440.34,0.00012037,2]
[355402281,1741107039846,-168.477616,0.00012084,2]
[355402283,1741107039855,-150.99,0.00012087,2]
[355402287,1741107039866,-852.98,0.00012087,2]
[355402289,1741107039875,-23986.41148047,0.00012087,2]
[355402298,1741107039922,-13866.93851953,0.00012087,2]
[355402301,1741107039933,-299.99,0.00012087,2]
[355402304,1741107039942,-909.49,0.00012087,2]
[355402307,1741107039951,-440.34,0.00012093,2]
[355402310,1741107039961,-440.34,0.00012149,2]
[355402313,1741107039971,-500.0,0.00012177,2]
[355402316,1741107039980,-500.0,0.00012177,2]
[355402318,1741107039990,-548.05475944,0.00012177,2]
[355402320,1741107040000,-294.97633452,0.00012177,2]
[355402322,1741107040010,-157.29,0.00012178,2]
[355402324,1741107040019,-150.0,0.00012178,2]
[355402326,1741107040029,-300.0,0.00012178,2]
[355402328,1741107040039,-150.0,0.00012178,2]
[355402330,1741107040050,-440.34,0.00012205,2]
[355402332,1741107040060,-440.34,0.00012261,2]
[355402334,1741107040069,-2049.3753,0.000123,2]
[355402336,1741107040081,-1206.0,0.000123,2]
[355402338,1741107040091,-440.34,0.00012317,2]
[355402340,1741107040102,-2621.48555709,0.00012342,2]
[355402342,1741107040111,-2163.1079,0.00012342,2]
[355402344,1741107040121,-12093.4129,0.00012342,2]
[355402346,1741107040131,-3392.02582817,0.00012342,2]
[355402350,1741107040158,-5270.22227183,0.00012342,2]
[355402352,1741107040168,-2621.48555701,0.00012358,2]
[355402354,1741107040178,-60.39705964,0.00012373,2]
[355402357,1741107040191,-379.94294036,0.00012373,2]
[355402359,1741107040201,-150.0,0.00012374,2]
[355402361,1741107040211,-414.95562299,0.00012375,2]
[355402363,1741107040222,-1664.31999676,0.00012375,2]
[355402534,1741107042103,-542.20993726,0.00012375,2]
[355402536,1741107042114,-409.08675244,0.00012381,2]
[355402548,1741107042232,-590.91324756,0.00012381,2]
[355402550,1741107042243,-38.32362296,0.00012381,2]
[355402783,1741107043761,-728.34223183,0.00012381,2]
[355402787,1741107043777,-2621.48555701,0.00012391,2]
[355402791,1741107043794,-269.2459,0.000124,2]
[355402796,1741107043810,-16380.92631116,0.000124,2]
[355402839,1741107044030,-13682.40158884,0.000124,2]
[355402844,1741107044047,-1100.9791,0.000124,2]
[355402847,1741107044062,-550.0,0.00012405,2]
[355402849,1741107044078,-550.0,0.00012405,2]
[355402853,1741107044099,-550.0,0.00012405,2]
[355402856,1741107044116,-2621.48555701,0.00012408,2]
[355402861,1741107044132,-2621.48555701,0.00012424,2]
[355402866,1741107044148,-440.34,0.00012429,2]
[355402868,1741107044164,-2621.48555701,0.00012441,2]
[355402873,1741107044181,-2621.48555701,0.00012457,2]
[355402875,1741107044197,-766.66585474,0.00012463,2]
[355402878,1741107044215,-2621.48555701,0.00012474,2]
[355402881,1741107044232,-440.34,0.00012485,2]
[355402883,1741107044248,-2762.85064389,0.00012487,2]
[355402886,1741107044265,-316.29184715,0.00012487,2]
[355402888,1741107044283,-20215.45221809,0.00012487,2]
[355403095,1741107045813,-1519.14076906,0.00012487,2]
[355403112,1741107045944,-1298.27571965,0.00012487,2]
[355403118,1741107046000,-438.865,0.00012487,2]
[355403119,1741107046013,-345.05819077,0.00012487,2]
[355403303,1741107171251,152.886686,0.00020011,120]
[355403313,1741107699087,-150.0,0.00011552,7]
[355403323,1741107782106,934.04,9.31e-05,2]
[355403344,1741108231836,-550.0,0.00011,2]
[355403345,1741108231847,-828.6,0.00011,2]
[355403346,1741108231858,-150.0,0.00011002,2]
[355403347,1741108231868,-203.65242304,0.00011003,2]
[355403348,1741108231878,-49.82414434,0.00011018,2]
[355403349,1741108231898,-585.17802667,0.00011018,2]
[355403350,1741108231913,-25850.7621083,0.00011018,2]
[355403351,1741108231923,-150.0,0.00011018,2]
[355403352,1741108231933,-300.0,0.00011035,2]
[355403353,1741108231943,-1100.29,0.00011035,2]
[355403354,1741108231953,-1000.0,0.00011103,2]
[355403355,1741108231964,-1918.4,0.00011121,2]
[355403356,1741108231974,-349.33,0.0001115,2]
[355403357,1741108231984,-156.29,0.00011428,2]
[355403358,1741108231994,-203.65242304,0.00011465,2]
[355403359,1741108232007,-156.29,0.00011496,2]
[355403360,1741108232018,-1523.24,0.00011507,2]
[355403361,1741108232028,-2000.0,0.00011524,2]
[355403362,1741108232037,-1000.0,0.00011539,2]
[355403363,1741108232047,-150.0,0.0001154,2]
[355403364,1741108232057,-5147.78650201,0.00011541,2]
[355403365,1741108232077,-370.04022624,0.00011541,2]
[355403366,1741108232088,-1190.87951664,0.00011541,2]
[355403367,1741108232105,-334.59538984,0.00011541,2]
[355403368,1741108232116,-345.2004754,0.00011541,2]
[355403369,1741108232135,-446.45,0.00011541,2]
[355403376,1741108232362,-16065.04788987,0.00011541,2]
[355403377,1741108232372,-156.29,0.00011565,2]
[355403378,1741108232382,-934.04,0.00011574,2]
[355403379,1741108232393,-250.0,0.00011588,2]
[355403380,1741108232404,-156.29,0.00011633,2]
[355403381,1741108232414,-150.0,0.000117,2]
[355403382,1741108232424,-156.29,0.00011702,2]
[355403383,1741108232434,-156.29,0.00011771,2]
[355403384,1741108232444,-156.29,0.00011839,2]
[355403385,1741108232454,-783.03,0.00011892,2]
[355403386,1741108232464,-156.29,0.00011908,2]
[355403387,1741108232474,-441.19,0.00011918,2]
[355403388,1741108232484,-441.19,0.00011918,2]
[355403389,1741108232494,-777.81,0.00011918,2]
[355403391,1741108232505,-441.19,0.00011918,2]
[355403393,1741108232514,-777.81,0.00011918,2]
[355403395,1741108232523,-441.19,0.00011918,2]
[355403397,1741108232532,-777.81,0.00011918,2]
[355403398,1741108232542,-441.19,0.00011918,2]
[355403399,1741108232551,-201.53,0.00011918,2]
[355403400,1741108232560,-441.29,0.00011918,2]
[355403401,1741108232570,-156.29,0.00011976,2]
[355403402,1741108232580,-500.0,0.00012,2]
[355403403,1741108232589,-500.0,0.00012,2]
[355403404,1741108232599,-500.0,0.00012,2]
[355403405,1741108232608,-500.0,0.00012,2]
[355403406,1741108232618,-500.0,0.00012,2]
[355403407,1741108232628,-500.0,0.00012,2]
[355403408,1741108232637,-500.0,0.00012,2]
[355403409,1741108232647,-500.0,0.00012,2]
[355403410,1741108232657,-500.0,0.00012,2]
[355403411,1741108232667,-500.0,0.00012,2]
[355403412,1741108232679,-288.2,0.00012,2]
[355403413,1741108232689,-777.81,0.00012041,2]
[355403414,1741108232698,-156.29,0.00012045,2]
[355403415,1741108232708,-882.28,0.00012055,2]
[355403416,1741108232718,-484.06,0.000121,2]
[355403417,1741108232728,-150.0,0.000121,2]
[355403418,1741108232738,-156.29,0.00012113,2]
[355403419,1741108232747,-420.0,0.00012125,2]
[355403420,1741108232758,-500.0,0.00012137,2]
[355403421,1741108232768,-156.29,0.00012182,2]
[355403422,1741108232778,-156.29,0.00012251,2]
[355403423,1741108232788,-433.40598907,0.0001226,2]
[355403424,1741108232799,-499.89585802,0.00012286,2]
[355403425,1741108232809,-1471.148,0.000123,2]
[355403426,1741108232818,-250.7757,0.000123,2]
[355403427,1741108232828,-528.46274989,0.000123,2]
[355403428,1741108232840,-13875.11025011,0.000123,2]
[355403429,1741108232850,-4244.3373139,0.000123,2]
[355403430,1741108232861,-894.43886271,0.000123,2]
[355403431,1741108232873,-1861.22382339,0.000123,2]
[355403432,1741108232883,-1200.0868,0.00012305,2]
[355403433,1741108232893,-499.89585794,0.00012308,2]
[355403434,1741108232904,-156.29,0.00012319,2]
[355403435,1741108232915,-499.89585794,0.00012331,2]
[355403436,1741108232928,-150.0,0.00012331,2]
[355403437,1741108232938,-499.89585794,0.00012353,2]
[355403438,1741108232948,-499.89585794,0.00012375,2]
[355403439,1741108232959,-609.03061454,0.00012386,2]
[355403440,1741108232969,-1370.76199959,0.00012387,2]
[355403441,1741108232979,-156.29,0.00012388,2]
[355403442,1741108232989,-499.89585794,0.00012398,2]
[355403443,1741108233000,-4941.99167278,0.000124,2]
[355403444,1741108233015,-601.68276649,0.000124,2]